[Event "Early-Titled-Tuesday-Blitz-April-23-2024"]
[Site "Chess.com"]
[Date "2024.04.23"]
[Round "5"]
[White "theoneandonlydaaevik"]
[Black "WCM-Mexicana"]
[Result "1-0"]
[WhiteElo "2580"]
[BlackElo "2368"]
[TimeControl "180+1"]
[EndTime "8:57:25 PDT"]
[Termination "theoneandonlydaaevik won by resignation"]

1. d4 {[%clk 0:02:56.6]} 1... Nf6 {[%clk 0:02:51.2]} 2. Nf3 {[%clk 0:02:56.5]}
2... g6 {[%clk 0:02:48.5]} 3. Bf4 {[%clk 0:02:51.6]} 3... d5 {[%clk 0:02:47.7]}
4. e3 {[%clk 0:02:47.2]} 4... Bg7 {[%clk 0:02:46.8]} 5. Nbd2 {[%clk 0:02:47.7]}
5... O-O {[%clk 0:02:45.7]} 6. Bd3 {[%clk 0:02:48.3]} 6... b6 {[%clk 0:02:39.4]}
7. h4 {[%clk 0:02:48.1]} 7... Bg4 {[%clk 0:02:37.6]} 8. c3 {[%clk 0:02:48.1]}
8... c5 {[%clk 0:02:37.1]} 9. Qc2 {[%clk 0:02:47.5]} 9... Nc6 {[%clk 0:02:36.6]}
10. Ne5 {[%clk 0:02:47.5]} 10... Nxe5 {[%clk 0:02:35.9]} 11. Bxe5 {[%clk
0:02:48.4]} 11... a5 {[%clk 0:02:32.9]} 12. f3 {[%clk 0:02:47.9]} 12... Be6
{[%clk 0:02:30.1]} 13. g4 {[%clk 0:02:48.3]} 13... c4 {[%clk 0:02:30.3]} 14. Be2
{[%clk 0:02:46.9]} 14... b5 {[%clk 0:02:30.3]} 15. a3 {[%clk 0:02:36]} 15... b4
{[%clk 0:02:29.3]} 16. axb4 {[%clk 0:02:35.4]} 16... axb4 {[%clk 0:02:29.4]} 17.
Kf2 {[%clk 0:02:36.3]} 17... b3 {[%clk 0:02:18.4]} 18. Qb1 {[%clk 0:02:34.6]}
18... Qd7 {[%clk 0:02:16.2]} 19. h5 {[%clk 0:02:27.3]} 19... Rfc8 {[%clk
0:02:10.3]} 20. Nf1 {[%clk 0:02:19.4]} 20... Qb7 {[%clk 0:02:05.1]} 21. Ng3
{[%clk 0:02:10.1]} 21... Rc6 {[%clk 0:01:56.2]} 22. Rxa8+ {[%clk 0:02:03]} 22...
Qxa8 {[%clk 0:01:57.1]} 23. g5 {[%clk 0:02:03.6]} 23... Ne8 {[%clk 0:01:55.7]}
24. Bxg7 {[%clk 0:02:03.7]} 24... Nxg7 {[%clk 0:01:56.6]} 25. hxg6 {[%clk
0:02:04.4]} 25... fxg6 {[%clk 0:01:36.8]} 26. Qg1 {[%clk 0:02:03.7]} 26... Qa2
{[%clk 0:01:30.1]} 27. Qh2 {[%clk 0:01:53.3]} 27... Qxb2 {[%clk 0:01:30.5]} 28.
Qxh7+ {[%clk 0:01:53.2]} 28... Kf7 {[%clk 0:01:31.1]} 29. Rh6 {[%clk 0:01:46.6]}
29... Bd7 {[%clk 0:00:57.9]} 30. f4 {[%clk 0:01:24.4]} 30... Qc2 {[%clk
0:00:36.3]} 31. Kf3 {[%clk 0:00:25.3]} 31... b2 {[%clk 0:00:24.8]} 32. Nh5
{[%clk 0:00:25.7]} 32... Qe4+ {[%clk 0:00:24.9]} 33. Kg3 {[%clk 0:00:25.5]}
33... gxh5 {[%clk 0:00:25.5]} 34. Bxh5+ {[%clk 0:00:25.7]} 34... Rg6 {[%clk
0:00:11.4]} 35. Bxg6+ {[%clk 0:00:25.4]} 1-0

[Event "Early-Titled-Tuesday-Blitz-April-23-2024"]
[Site "Chess.com"]
[Date "2024.04.23"]
[Round "5"]
[White "Payyappat"]
[Black "carokannlover213"]
[Result "0-1"]
[WhiteElo "2527"]
[BlackElo "2795"]
[TimeControl "180+1"]
[EndTime "8:57:27 PDT"]
[Termination "carokannlover213 won by resignation"]

1. e4 {[%clk 0:03:00.9]} 1... c5 {[%clk 0:03:00]} 2. Nf3 {[%clk 0:03:00.6]} 2...
d6 {[%clk 0:02:59.5]} 3. d4 {[%clk 0:03:01.5]} 3... cxd4 {[%clk 0:02:59.6]} 4.
Nxd4 {[%clk 0:03:02.4]} 4... Nf6 {[%clk 0:03:00.2]} 5. Nc3 {[%clk 0:03:03.1]}
5... Nc6 {[%clk 0:03:00.3]} 6. h4 {[%clk 0:03:01.7]} 6... e5 {[%clk 0:02:58.6]}
7. Nb3 {[%clk 0:03:01]} 7... Be6 {[%clk 0:02:56.8]} 8. Bg5 {[%clk 0:02:59.8]}
8... Be7 {[%clk 0:02:54.9]} 9. g3 {[%clk 0:02:57.4]} 9... O-O {[%clk 0:02:50.9]}
10. Qd2 {[%clk 0:02:57.2]} 10... a5 {[%clk 0:02:50.6]} 11. O-O-O {[%clk
0:02:38.7]} 11... a4 {[%clk 0:02:45.6]} 12. Na1 {[%clk 0:02:38.9]} 12... a3
{[%clk 0:02:36.7]} 13. b3 {[%clk 0:02:35.4]} 13... Nd4 {[%clk 0:02:25.2]} 14.
Kb1 {[%clk 0:02:32.5]} 14... Rc8 {[%clk 0:02:21]} 15. Bxf6 {[%clk 0:02:25.7]}
15... Bxf6 {[%clk 0:02:19.6]} 16. Nb5 {[%clk 0:02:18.3]} 16... Bg4 {[%clk
0:02:10.2]} 17. Nxd4 {[%clk 0:02:05.3]} 17... Bxd1 {[%clk 0:02:09.4]} 18. Nb5
{[%clk 0:01:39.1]} 18... Bf3 {[%clk 0:02:04.2]} 19. Rg1 {[%clk 0:01:39.2]} 19...
Bxe4 {[%clk 0:01:36.3]} 20. g4 {[%clk 0:01:35.5]} 20... Bxh4 {[%clk 0:01:32.1]}
21. g5 {[%clk 0:01:26.7]} 21... Bf5 {[%clk 0:01:15.3]} 22. Bc4 {[%clk 0:00:39]}
22... d5 {[%clk 0:01:06.1]} 23. Qxd5 {[%clk 0:00:16.7]} 23... Qxd5 {[%clk
0:01:05.1]} 24. Bxd5 {[%clk 0:00:17.6]} 24... Rc5 {[%clk 0:01:02]} 25. Bc4
{[%clk 0:00:17.7]} 25... Bxf2 {[%clk 0:00:52.9]} 26. Rf1 {[%clk 0:00:17.5]}
26... Rd8 {[%clk 0:00:53.5]} 27. Nxa3 {[%clk 0:00:15.6]} 27... Rd2 {[%clk
0:00:46.4]} 28. Kc1 {[%clk 0:00:13.8]} 28... Be3 {[%clk 0:00:45]} 29. Rf3 {[%clk
0:00:13.4]} 29... Rxc2+ {[%clk 0:00:43.1]} 30. Kb1 {[%clk 0:00:13.1]} 30... Rf2+
{[%clk 0:00:36.2]} 31. Rxf5 {[%clk 0:00:11.2]} 31... Rxf5 {[%clk 0:00:26.7]} 32.
N1c2 {[%clk 0:00:10.8]} 32... Bd4 {[%clk 0:00:27.1]} 33. b4 {[%clk 0:00:10.1]}
33... Rxc4 {[%clk 0:00:26.6]} 34. Nxc4 {[%clk 0:00:09.8]} 34... Rxg5 {[%clk
0:00:27.3]} 35. Nxd4 {[%clk 0:00:08]} 35... exd4 {[%clk 0:00:28.2]} 36. a4
{[%clk 0:00:08.2]} 36... h5 {[%clk 0:00:23.8]} 37. a5 {[%clk 0:00:08.4]} 37...
h4 {[%clk 0:00:23.1]} 0-1

[Event "Early-Titled-Tuesday-Blitz-April-23-2024"]
[Site "Chess.com"]
[Date "2024.04.23"]
[Round "5"]
[White "NM_Antelacus"]
[Black "Maluco_do_Natal_00"]
[Result "1-0"]
[WhiteElo "2266"]
[BlackElo "2023"]
[TimeControl "180+1"]
[EndTime "8:57:27 PDT"]
[Termination "NM_Antelacus won by resignation"]

1. e4 {[%clk 0:03:00.9]} 1... c5 {[%clk 0:02:59.8]} 2. Nc3 {[%clk 0:02:59]} 2...
Nc6 {[%clk 0:03:00.1]} 3. g3 {[%clk 0:02:59]} 3... g6 {[%clk 0:02:58.1]} 4. Bg2
{[%clk 0:02:59.2]} 4... Bg7 {[%clk 0:02:58.5]} 5. d3 {[%clk 0:02:58.7]} 5... d6
{[%clk 0:02:58.6]} 6. f4 {[%clk 0:02:58.6]} 6... e6 {[%clk 0:02:55.4]} 7. Nf3
{[%clk 0:02:58.2]} 7... Nge7 {[%clk 0:02:55.6]} 8. O-O {[%clk 0:02:58]} 8... Nd4
{[%clk 0:02:55.6]} 9. Be3 {[%clk 0:02:54.5]} 9... Nec6 {[%clk 0:02:55.6]} 10.
Qd2 {[%clk 0:02:51.7]} 10... a6 {[%clk 0:02:48]} 11. h3 {[%clk 0:02:48.2]} 11...
f5 {[%clk 0:02:45.2]} 12. Rab1 {[%clk 0:02:38]} 12... O-O {[%clk 0:02:44.4]} 13.
Ne2 {[%clk 0:02:25]} 13... Rb8 {[%clk 0:02:20.2]} 14. c3 {[%clk 0:02:24.4]}
14... Nxe2+ {[%clk 0:02:16.8]} 15. Qxe2 {[%clk 0:02:23.8]} 15... Bd7 {[%clk
0:02:08.8]} 16. e5 {[%clk 0:02:21.5]} 16... Qc7 {[%clk 0:01:47.2]} 17. d4 {[%clk
0:02:17.7]} 17... dxe5 {[%clk 0:01:41.1]} 18. dxe5 {[%clk 0:02:12.6]} 18... b6
{[%clk 0:01:36]} 19. Rfd1 {[%clk 0:02:10.5]} 19... Rbd8 {[%clk 0:01:34.7]} 20.
Qxa6 {[%clk 0:02:08.1]} 20... Ra8 {[%clk 0:01:07.9]} 21. Qc4 {[%clk 0:02:06.5]}
21... Na5 {[%clk 0:01:02.3]} 22. Qe2 {[%clk 0:02:05.6]} 22... Bc6 {[%clk
0:01:00.8]} 23. Ng5 {[%clk 0:01:58.7]} 23... Rfe8 {[%clk 0:00:54.7]} 24. a3
{[%clk 0:01:52.4]} 24... h6 {[%clk 0:00:53.7]} 25. Nf3 {[%clk 0:01:50.1]} 25...
Be4 {[%clk 0:00:50.4]} 26. Nh4 {[%clk 0:01:23.8]} 26... Bxg2 {[%clk 0:00:41.7]}
27. Qxg2 {[%clk 0:01:22.2]} 27... Kh7 {[%clk 0:00:41.8]} 28. Nf3 {[%clk
0:01:12.5]} 28... Nc4 {[%clk 0:00:38.6]} 29. Qe2 {[%clk 0:01:10.5]} 29... b5
{[%clk 0:00:32.6]} 30. Nd2 {[%clk 0:01:06.6]} 30... Nxe3 {[%clk 0:00:30.6]} 31.
Qxe3 {[%clk 0:01:06.6]} 31... Red8 {[%clk 0:00:30.1]} 32. Nb3 {[%clk 0:01:04.9]}
32... Bf8 {[%clk 0:00:27.5]} 33. Qf3 {[%clk 0:00:49]} 33... Rac8 {[%clk
0:00:20.4]} 34. Rxd8 {[%clk 0:00:44.3]} 34... Rxd8 {[%clk 0:00:20.4]} 35. Rd1
{[%clk 0:00:44.2]} 35... c4 {[%clk 0:00:20.6]} 36. Rxd8 {[%clk 0:00:38]} 36...
Qxd8 {[%clk 0:00:18.7]} 37. Nd4 {[%clk 0:00:37.9]} 37... Bc5 {[%clk 0:00:17.9]}
38. Qe3 {[%clk 0:00:37.3]} 38... Qd5 {[%clk 0:00:16.2]} 39. Kh2 {[%clk
0:00:33.8]} 39... g5 {[%clk 0:00:16.4]} 40. fxg5 {[%clk 0:00:32.3]} 40... hxg5
{[%clk 0:00:14.6]} 41. Qxg5 {[%clk 0:00:26.2]} 41... Qxd4 {[%clk 0:00:14.7]} 42.
cxd4 {[%clk 0:00:24.8]} 1-0

[Event "Early-Titled-Tuesday-Blitz-April-23-2024"]
[Site "Chess.com"]
[Date "2024.04.23"]
[Round "5"]
[White "PonyQueen07"]
[Black "Daaksboy"]
[Result "0-1"]
[WhiteElo "2201"]
[BlackElo "2408"]
[TimeControl "180+1"]
[EndTime "8:57:29 PDT"]
[Termination "Daaksboy won by checkmate"]

1. c4 {[%clk 0:03:00.9]} 1... Nf6 {[%clk 0:02:59.3]} 2. Nc3 {[%clk 0:02:59.2]}
2... g6 {[%clk 0:02:59.8]} 3. g3 {[%clk 0:02:59.7]} 3... Bg7 {[%clk 0:02:59.9]}
4. Bg2 {[%clk 0:03:00.1]} 4... O-O {[%clk 0:03:00.6]} 5. e4 {[%clk 0:02:57.6]}
5... d6 {[%clk 0:03:00.3]} 6. Nge2 {[%clk 0:02:58.1]} 6... c5 {[%clk 0:03:00.2]}
7. O-O {[%clk 0:02:58.7]} 7... Nc6 {[%clk 0:02:59.4]} 8. d3 {[%clk 0:02:59.3]}
8... a6 {[%clk 0:02:55.9]} 9. h3 {[%clk 0:02:56.8]} 9... Rb8 {[%clk 0:02:37.3]}
10. a4 {[%clk 0:02:56.3]} 10... Ne8 {[%clk 0:02:37.1]} 11. Be3 {[%clk
0:02:54.7]} 11... Nc7 {[%clk 0:02:37.2]} 12. Qd2 {[%clk 0:02:53.7]} 12... b5
{[%clk 0:02:35.2]} 13. axb5 {[%clk 0:02:53.7]} 13... axb5 {[%clk 0:02:34.9]} 14.
cxb5 {[%clk 0:02:46.5]} 14... Nxb5 {[%clk 0:02:34.9]} 15. Bh6 {[%clk 0:02:35.7]}
15... Nbd4 {[%clk 0:02:30.8]} 16. Bxg7 {[%clk 0:02:32.7]} 16... Kxg7 {[%clk
0:02:30.2]} 17. Nxd4 {[%clk 0:02:32.9]} 17... Nxd4 {[%clk 0:02:25.9]} 18. Nd5
{[%clk 0:02:27.8]} 18... e6 {[%clk 0:02:18.6]} 19. Ne3 {[%clk 0:02:25.9]} 19...
Nb3 {[%clk 0:02:09.4]} 20. Qc3+ {[%clk 0:02:25.4]} 20... Qf6 {[%clk 0:02:07.9]}
21. Ra7 {[%clk 0:02:20.5]} 21... Nd4 {[%clk 0:02:05.9]} 22. Kh2 {[%clk 0:02:10]}
22... Rb3 {[%clk 0:01:56.3]} 23. Qd2 {[%clk 0:02:07.8]} 23... Rxb2 {[%clk
0:01:56]} 24. Qxb2 {[%clk 0:02:00.1]} 24... Nf3+ {[%clk 0:01:55.8]} 25. Bxf3
{[%clk 0:01:59.5]} 25... Qxb2 {[%clk 0:01:56.7]} 26. Nc4 {[%clk 0:01:57.6]}
26... Qd4 {[%clk 0:01:56.5]} 27. Be2 {[%clk 0:01:41.6]} 27... d5 {[%clk
0:01:55.7]} 28. exd5 {[%clk 0:01:39.4]} 28... exd5 {[%clk 0:01:56.6]} 29. Nd6
{[%clk 0:01:28.7]} 29... Be6 {[%clk 0:01:56]} 30. Ra2 {[%clk 0:01:03.9]} 30...
Rd8 {[%clk 0:01:53.1]} 31. Nb5 {[%clk 0:00:58.8]} 31... Qe5 {[%clk 0:01:52.7]}
32. f4 {[%clk 0:00:54.7]} 32... Qf5 {[%clk 0:01:51.6]} 33. g4 {[%clk 0:00:43.9]}
33... Qf6 {[%clk 0:01:51.5]} 34. Ra6 {[%clk 0:00:42.6]} 34... Qb2 {[%clk
0:01:49.5]} 35. Rf2 {[%clk 0:00:29.5]} 35... Qxb5 {[%clk 0:01:49.1]} 36. d4
{[%clk 0:00:30]} 36... Qb4 {[%clk 0:01:48.4]} 37. f5 {[%clk 0:00:24]} 37... Qxd4
{[%clk 0:01:48.6]} 38. Kg2 {[%clk 0:00:07]} 38... gxf5 {[%clk 0:01:44.1]} 39.
gxf5 {[%clk 0:00:06.6]} 39... Bxf5 {[%clk 0:01:44.6]} 40. Rxf5 {[%clk
0:00:06.2]} 40... Qe4+ {[%clk 0:01:44.9]} 41. Rf3 {[%clk 0:00:05.7]} 41... Qxe2+
{[%clk 0:01:44.8]} 42. Kg3 {[%clk 0:00:06.3]} 42... Qe5+ {[%clk 0:01:44.3]} 43.
Kf2 {[%clk 0:00:05]} 43... Rb8 {[%clk 0:01:44.2]} 44. Rg3+ {[%clk 0:00:04.9]}
44... Kf8 {[%clk 0:01:44.9]} 45. Ra2 {[%clk 0:00:02.9]} 45... Rb2+ {[%clk
0:01:45.8]} 46. Rxb2 {[%clk 0:00:03]} 46... Qxb2+ {[%clk 0:01:46.3]} 47. Kf3
{[%clk 0:00:03.9]} 47... Qc3+ {[%clk 0:01:46.7]} 48. Kg4 {[%clk 0:00:04.8]}
48... Qxg3+ {[%clk 0:01:47.5]} 49. Kxg3 {[%clk 0:00:05.7]} 49... Ke7 {[%clk
0:01:48]} 50. Kf3 {[%clk 0:00:06.6]} 50... Ke6 {[%clk 0:01:48.9]} 51. Ke3 {[%clk
0:00:07.5]} 51... Ke5 {[%clk 0:01:49.3]} 52. Kd3 {[%clk 0:00:08.4]} 52... f5
{[%clk 0:01:50.1]} 53. Kc3 {[%clk 0:00:09.3]} 53... f4 {[%clk 0:01:51]} 54. Kd3
{[%clk 0:00:09.6]} 54... f3 {[%clk 0:01:51.9]} 55. Ke3 {[%clk 0:00:10.4]} 55...
f2 {[%clk 0:01:52.8]} 56. Kxf2 {[%clk 0:00:10.9]} 56... Ke4 {[%clk 0:01:53.3]}
57. Ke2 {[%clk 0:00:11]} 57... d4 {[%clk 0:01:54]} 58. Kd2 {[%clk 0:00:11.7]}
58... c4 {[%clk 0:01:54.7]} 59. Ke2 {[%clk 0:00:12]} 59... d3+ {[%clk
0:01:54.8]} 60. Kd2 {[%clk 0:00:12.1]} 60... Kd4 {[%clk 0:01:55.4]} 61. Kd1
{[%clk 0:00:12.5]} 61... c3 {[%clk 0:01:56]} 62. h4 {[%clk 0:00:13.1]} 62... d2
{[%clk 0:01:55.1]} 63. Kc2 {[%clk 0:00:12.3]} 63... Kc4 {[%clk 0:01:53.3]} 64.
h5 {[%clk 0:00:12.5]} 64... h6 {[%clk 0:01:53.3]} 65. Kd1 {[%clk 0:00:12.1]}
65... Kb3 {[%clk 0:01:54]} 66. Ke2 {[%clk 0:00:12.6]} 66... Kc2 {[%clk
0:01:54.6]} 67. Kf3 {[%clk 0:00:12.6]} 67... d1=Q+ {[%clk 0:01:55.1]} 68. Kf4
{[%clk 0:00:13.5]} 68... Qxh5 {[%clk 0:01:55.4]} 69. Ke4 {[%clk 0:00:13.6]}
69... Qg4+ {[%clk 0:01:51.8]} 70. Kd5 {[%clk 0:00:13.4]} 70... Kd2 {[%clk
0:01:49.8]} 71. Kc5 {[%clk 0:00:14.3]} 71... h5 {[%clk 0:01:50]} 72. Kb5 {[%clk
0:00:15.2]} 72... h4 {[%clk 0:01:50.9]} 73. Ka5 {[%clk 0:00:16.1]} 73... h3
{[%clk 0:01:51.8]} 74. Ka6 {[%clk 0:00:15.6]} 74... h2 {[%clk 0:01:52.7]} 75.
Kb6 {[%clk 0:00:16.5]} 75... h1=Q {[%clk 0:01:52.3]} 76. Ka6 {[%clk 0:00:17.4]}
76... Qhh5 {[%clk 0:01:51.7]} 77. Kb6 {[%clk 0:00:18.3]} 77... Qgg6+ {[%clk
0:01:52.2]} 78. Ka7 {[%clk 0:00:19.2]} 78... Qhh7+ {[%clk 0:01:53.1]} 79. Kb8
{[%clk 0:00:20.1]} 79... Qgg8# {[%clk 0:01:54]} 0-1

[Event "Early-Titled-Tuesday-Blitz-April-23-2024"]
[Site "Chess.com"]
[Date "2024.04.23"]
[Round "5"]
[White "Antipov_Mikhail_Al"]
[Black "wonderfultime"]
[Result "0-1"]
[WhiteElo "2893"]
[BlackElo "3069"]
[TimeControl "180+1"]
[EndTime "8:57:31 PDT"]
[Termination "wonderfultime won by resignation"]

1. e4 {[%clk 0:03:00.9]} 1... e5 {[%clk 0:02:58.6]} 2. Nf3 {[%clk 0:03:01]} 2...
Nc6 {[%clk 0:02:58.9]} 3. Nc3 {[%clk 0:02:59.8]} 3... Nf6 {[%clk 0:02:59]} 4.
Bb5 {[%clk 0:03:00.5]} 4... Nd4 {[%clk 0:02:57.2]} 5. Nxe5 {[%clk 0:03:00.5]}
5... Qe7 {[%clk 0:02:38.5]} 6. f4 {[%clk 0:03:00.2]} 6... Nxb5 {[%clk
0:02:34.7]} 7. Nxb5 {[%clk 0:03:01.1]} 7... d6 {[%clk 0:02:35.4]} 8. Nf3 {[%clk
0:03:01.7]} 8... Qxe4+ {[%clk 0:01:52.4]} 9. Kf2 {[%clk 0:03:01.5]} 9... Qc6
{[%clk 0:01:53.3]} 10. Re1+ {[%clk 0:02:59.9]} 10... Be7 {[%clk 0:01:53.8]} 11.
Qe2 {[%clk 0:02:48.2]} 11... Qd7 {[%clk 0:01:50.6]} 12. c4 {[%clk 0:02:39.1]}
12... c6 {[%clk 0:01:23.7]} 13. Nbd4 {[%clk 0:02:25.2]} 13... Kf8 {[%clk
0:01:23.3]} 14. d3 {[%clk 0:02:15.3]} 14... Bd8 {[%clk 0:01:11.6]} 15. b4 {[%clk
0:02:08.1]} 15... c5 {[%clk 0:01:03.6]} 16. bxc5 {[%clk 0:02:03.3]} 16... dxc5
{[%clk 0:01:04.5]} 17. Nb5 {[%clk 0:02:00.3]} 17... b6 {[%clk 0:00:58.4]} 18.
Ne5 {[%clk 0:01:57]} 18... Qe7 {[%clk 0:00:53.2]} 19. d4 {[%clk 0:01:48.9]}
19... a6 {[%clk 0:00:49]} 20. Nc3 {[%clk 0:01:39.9]} 20... cxd4 {[%clk
0:00:49.3]} 21. Nd5 {[%clk 0:01:24.4]} 21... Qe6 {[%clk 0:00:45.3]} 22. Ba3+
{[%clk 0:01:19.2]} 22... Kg8 {[%clk 0:00:45.6]} 23. Qf3 {[%clk 0:01:17]} 23...
Nxd5 {[%clk 0:00:23.9]} 24. cxd5 {[%clk 0:01:17.2]} 24... Qf5 {[%clk 0:00:23.9]}
25. Rac1 {[%clk 0:00:38]} 25... h5 {[%clk 0:00:19.4]} 26. d6 {[%clk 0:00:30.5]}
26... Ra7 {[%clk 0:00:19.8]} 27. Nc6 {[%clk 0:00:30.7]} 27... Rd7 {[%clk
0:00:20.4]} 28. Re8+ {[%clk 0:00:26.1]} 28... Kh7 {[%clk 0:00:20.5]} 29. Re5
{[%clk 0:00:27]} 29... Qf6 {[%clk 0:00:15]} 30. Qe4+ {[%clk 0:00:06.4]} 30... g6
{[%clk 0:00:14.1]} 31. Rxh5+ {[%clk 0:00:06.1]} 31... Kg7 {[%clk 0:00:14.7]} 32.
Rxh8 {[%clk 0:00:06.9]} 32... Kxh8 {[%clk 0:00:15.3]} 33. Ne5 {[%clk 0:00:06.9]}
33... Bb7 {[%clk 0:00:13.4]} 34. Nf3 {[%clk 0:00:04.8]} 34... Bxe4 {[%clk
0:00:13.1]} 0-1

[Event "Early-Titled-Tuesday-Blitz-April-23-2024"]
[Site "Chess.com"]
[Date "2024.04.23"]
[Round "5"]
[White "jaskol95"]
[Black "David_George21"]
[Result "0-1"]
[WhiteElo "2547"]
[BlackElo "2341"]
[TimeControl "180+1"]
[EndTime "8:57:33 PDT"]
[Termination "David_George21 won by checkmate"]

1. d4 {[%clk 0:03:00.9]} 1... Nf6 {[%clk 0:02:54.3]} 2. c4 {[%clk 0:03:00.7]}
2... e6 {[%clk 0:02:54.4]} 3. g3 {[%clk 0:03:00.7]} 3... d5 {[%clk 0:02:51]} 4.
Bg2 {[%clk 0:03:00.8]} 4... dxc4 {[%clk 0:02:51.2]} 5. Nf3 {[%clk 0:03:00.3]}
5... c5 {[%clk 0:02:51.9]} 6. O-O {[%clk 0:02:59.8]} 6... Nc6 {[%clk 0:02:52.6]}
7. Na3 {[%clk 0:02:43.8]} 7... cxd4 {[%clk 0:02:50.6]} 8. Nxc4 {[%clk
0:02:43.3]} 8... Bc5 {[%clk 0:02:40]} 9. Bg5 {[%clk 0:02:33.3]} 9... O-O {[%clk
0:02:37.9]} 10. Rc1 {[%clk 0:02:33.1]} 10... h6 {[%clk 0:02:37.3]} 11. Bf4
{[%clk 0:02:31.8]} 11... Nd5 {[%clk 0:02:31.5]} 12. Nce5 {[%clk 0:02:29]} 12...
Nxf4 {[%clk 0:02:08.4]} 13. gxf4 {[%clk 0:02:27.7]} 13... Nxe5 {[%clk
0:02:03.6]} 14. Rxc5 {[%clk 0:02:01.9]} 14... Nxf3+ {[%clk 0:01:57.8]} 15. Bxf3
{[%clk 0:02:02.8]} 15... Qd6 {[%clk 0:01:57.1]} 16. Qc1 {[%clk 0:01:51.9]} 16...
Rb8 {[%clk 0:01:44.8]} 17. Kh1 {[%clk 0:01:48.9]} 17... Bd7 {[%clk 0:01:43.5]}
18. Rg1 {[%clk 0:01:47.3]} 18... Rfc8 {[%clk 0:01:37]} 19. b4 {[%clk 0:01:47.4]}
19... b6 {[%clk 0:01:36.2]} 20. Rxc8+ {[%clk 0:01:45.4]} 20... Rxc8 {[%clk
0:01:37.1]} 21. Qd2 {[%clk 0:01:45.2]} 21... Bc6 {[%clk 0:01:20.1]} 22. Bxc6
{[%clk 0:01:42.9]} 22... Qxc6+ {[%clk 0:01:21]} 23. f3 {[%clk 0:01:42.9]} 23...
Qc3 {[%clk 0:01:19.6]} 24. Qd1 {[%clk 0:01:36.6]} 24... Qxb4 {[%clk 0:01:15.1]}
25. Qd3 {[%clk 0:01:36.5]} 25... Qc3 {[%clk 0:01:12.8]} 26. Qe4 {[%clk
0:01:34.3]} 26... Qe3 {[%clk 0:01:12.8]} 27. Qb7 {[%clk 0:01:34.6]} 27... Rc1
{[%clk 0:01:03]} 28. Rxc1 {[%clk 0:01:28.2]} 28... Qxc1+ {[%clk 0:01:03.3]} 29.
Kg2 {[%clk 0:01:29.1]} 29... Qe3 {[%clk 0:00:56.8]} 30. Qxa7 {[%clk 0:01:27.7]}
30... Qxe2+ {[%clk 0:00:56.9]} 31. Kg3 {[%clk 0:01:28.4]} 31... d3 {[%clk
0:00:52.3]} 32. f5 {[%clk 0:00:57.5]} 32... exf5 {[%clk 0:00:39.4]} 33. Qb8+
{[%clk 0:00:57.1]} 33... Kh7 {[%clk 0:00:38.4]} 34. Qc7 {[%clk 0:00:54.5]} 34...
d2 {[%clk 0:00:23.3]} 35. Qxf7 {[%clk 0:00:51.6]} 35... Qe5+ {[%clk 0:00:22.8]}
36. f4 {[%clk 0:00:50]} 36... Qd6 {[%clk 0:00:18.6]} 37. Kf2 {[%clk 0:00:30.8]}
37... d1=Q {[%clk 0:00:18.2]} 38. Qxf5+ {[%clk 0:00:31.6]} 38... Qg6 {[%clk
0:00:18.5]} 39. Qh3 {[%clk 0:00:30.6]} 39... Qgc2+ {[%clk 0:00:18.3]} 40. Kg3
{[%clk 0:00:31]} 40... Qdd3+ {[%clk 0:00:18.3]} 41. Kg4 {[%clk 0:00:31.8]} 41...
Qxh3+ {[%clk 0:00:18.6]} 42. Kxh3 {[%clk 0:00:32.4]} 42... Qxa2 {[%clk
0:00:19.2]} 43. f5 {[%clk 0:00:32.6]} 43... Qd5 {[%clk 0:00:19.2]} 44. Kg4
{[%clk 0:00:32.9]} 44... Qe4+ {[%clk 0:00:19.6]} 45. Kh5 {[%clk 0:00:32.9]}
45... Qxf5+ {[%clk 0:00:19.2]} 46. Kh4 {[%clk 0:00:33.8]} 46... Qg5+ {[%clk
0:00:18.8]} 47. Kh3 {[%clk 0:00:34.2]} 47... Qf5+ {[%clk 0:00:19.5]} 48. Kh4
{[%clk 0:00:34.6]} 48... g5+ {[%clk 0:00:17.3]} 49. Kg3 {[%clk 0:00:35.5]} 49...
Qf4+ {[%clk 0:00:17.3]} 50. Kh3 {[%clk 0:00:35.7]} 50... Qf3# {[%clk 0:00:16.7]}
0-1

[Event "Early-Titled-Tuesday-Blitz-April-23-2024"]
[Site "Chess.com"]
[Date "2024.04.23"]
[Round "5"]
[White "dropstoneDP"]
[Black "Storne89"]
[Result "1/2-1/2"]
[WhiteElo "3017"]
[BlackElo "2748"]
[TimeControl "180+1"]
[EndTime "8:57:34 PDT"]
[Termination "Game drawn - insufficient material"]

1. e4 {[%clk 0:03:00.9]} 1... e5 {[%clk 0:02:59.3]} 2. Nf3 {[%clk 0:03:01.3]}
2... Nc6 {[%clk 0:02:59.8]} 3. Bb5 {[%clk 0:02:59.4]} 3... g6 {[%clk 0:02:59.4]}
4. d4 {[%clk 0:02:47.3]} 4... exd4 {[%clk 0:02:57.9]} 5. Bg5 {[%clk 0:02:44.9]}
5... Be7 {[%clk 0:02:56.5]} 6. Bxe7 {[%clk 0:02:44.2]} 6... Qxe7 {[%clk
0:02:56.2]} 7. O-O {[%clk 0:02:44.6]} 7... Qc5 {[%clk 0:02:35]} 8. Bxc6 {[%clk
0:02:43.2]} 8... dxc6 {[%clk 0:02:34.8]} 9. Qxd4 {[%clk 0:02:43]} 9... Qxd4
{[%clk 0:02:34]} 10. Nxd4 {[%clk 0:02:43.9]} 10... Bd7 {[%clk 0:02:33]} 11. Nc3
{[%clk 0:02:42.3]} 11... O-O-O {[%clk 0:02:32.5]} 12. Rad1 {[%clk 0:02:42.9]}
12... Ne7 {[%clk 0:02:31.3]} 13. Rfe1 {[%clk 0:02:36.1]} 13... Rhe8 {[%clk
0:02:30.6]} 14. f3 {[%clk 0:02:34.7]} 14... a5 {[%clk 0:02:25.9]} 15. Kf2 {[%clk
0:02:33.2]} 15... c5 {[%clk 0:02:21.5]} 16. Ndb5 {[%clk 0:02:24.8]} 16... Be6
{[%clk 0:02:06.3]} 17. h4 {[%clk 0:01:56.5]} 17... h5 {[%clk 0:01:49.6]} 18. a3
{[%clk 0:01:53.9]} 18... Nc6 {[%clk 0:01:47.4]} 19. Nd5 {[%clk 0:01:53.4]} 19...
Bxd5 {[%clk 0:01:43.2]} 20. exd5 {[%clk 0:01:45.2]} 20... Rxe1 {[%clk
0:01:21.1]} 21. Kxe1 {[%clk 0:01:46.1]} 21... Ne7 {[%clk 0:01:00.1]} 22. d6
{[%clk 0:01:43.4]} 22... Nf5 {[%clk 0:00:57.3]} 23. Nxc7 {[%clk 0:01:30.3]}
23... Rxd6 {[%clk 0:00:49.6]} 24. Rxd6 {[%clk 0:01:17]} 24... Nxd6 {[%clk
0:00:50.5]} 25. Nd5 {[%clk 0:01:16.9]} 25... Nf5 {[%clk 0:00:41.7]} 26. Kf2
{[%clk 0:01:15.2]} 26... Nxh4 {[%clk 0:00:40.9]} 27. Ne3 {[%clk 0:01:08.4]}
27... g5 {[%clk 0:00:38.1]} 28. Nc4 {[%clk 0:01:07.1]} 28... Kc7 {[%clk
0:00:29.6]} 29. Nxa5 {[%clk 0:01:07.1]} 29... Nf5 {[%clk 0:00:28]} 30. Nc4
{[%clk 0:00:51]} 30... f6 {[%clk 0:00:22.8]} 31. a4 {[%clk 0:00:49.7]} 31... h4
{[%clk 0:00:22.5]} 32. c3 {[%clk 0:00:47.5]} 32... Kc6 {[%clk 0:00:21.7]} 33. b4
{[%clk 0:00:45.4]} 33... cxb4 {[%clk 0:00:21.5]} 34. cxb4 {[%clk 0:00:46.3]}
34... b5 {[%clk 0:00:17.8]} 35. Ne3 {[%clk 0:00:29.7]} 35... Nxe3 {[%clk
0:00:11.1]} 36. axb5+ {[%clk 0:00:28.9]} 36... Kxb5 {[%clk 0:00:11.6]} 37. Kxe3
{[%clk 0:00:29.5]} 37... f5 {[%clk 0:00:11.2]} 38. Kd4 {[%clk 0:00:24.8]} 38...
Kxb4 {[%clk 0:00:04.6]} 39. Ke5 {[%clk 0:00:24.6]} 39... g4 {[%clk 0:00:05.3]}
40. fxg4 {[%clk 0:00:23.7]} 40... fxg4 {[%clk 0:00:05.5]} 41. Kf4 {[%clk
0:00:24.3]} 41... h3 {[%clk 0:00:05.8]} 42. gxh3 {[%clk 0:00:25.2]} 42... gxh3
{[%clk 0:00:06.3]} 43. Kg3 {[%clk 0:00:25.9]} 43... h2 {[%clk 0:00:06.9]} 44.
Kxh2 {[%clk 0:00:26.8]} 1/2-1/2